Workbook

Sheet ADA DPAC MAR 2024 CAA
A1: C
A2: DBE Commitment at Award (CAA) on Federally Funded Architectural & Engineering Contracts - October 1, 2023 - March 31, 2024
A4: Total Award Amount Year-to-Date (YTD) | C4: Total DBE Commitment Amount YTD | F4: Total Prime Contracts Awarded YTD
A5: 273086192 | C5: =SUM(C7:C18) -> 61872822.95 | F5: =SUM(C132:C137,I132:I137,F132:F137) -> 22
A6: Groups | C6: Commitment Dollars YTD | D6: Firms YTD | E6: Contracts YTD | F6: % of Contracts | G6: % of DBE $ | H6: % of Total $
A7: Hispanic American Male | C7: =SUMIF(D26:D50,"m", C26:C50) -> 19733945.82 | D7: =COUNTIF(D26:D50,"M") -> 16 | E7: =SUMIF(D26:D50,"M",E26:E50) -> 25 | F7: =E7/E20 -> 0.2293577982 | G7: =C7/C5 -> 0.3189436796 | H7: =C7/A5 -> 0.07226270093
A8: Hispanic American Female | C8: =SUMIF(D26:D50,"F", C26:C50) -> 1850504.71 | D8: =COUNTIF(D26:D50,"F") -> 4 | E8: =SUMIF(D26:D50,"F",E26:E50) -> 4 | F8: =E8/E20 -> 0.03669724771 | G8: =C8/C5 -> 0.02990819914 | H8: =C8/A5 -> 0.006776266117
A9: African American Male | C9: =SUMIF(D57:D61,"m", C57:C61) -> 367895.11 | D9: =COUNTIF(D57:D61,"M") -> 2 | E9: =SUMIF(D57:D61,"M",E57:E61) -> 2 | F9: =E9/E20 -> 0.01834862385 | G9: =C9/C5 -> 0.005945988763 | H9: =C9/A5 -> 0.001347175803
A10: African American Female | C10: =SUMIF(D57:D61,"F", C57:C61) -> 80000 | D10: =COUNTIF(D57:D61,"F") -> 1 | E10: =SUMIF(D57:D61,"F",E57:E61) -> 1 | F10: =E10/E20 -> 0.009174311927 | G10: =C10/C5 -> 0.001292974786 | H10: =C10/A5 -> 0.0002929478031
A11: Asian Pacific Male | C11: =SUMIF(D74:D96,"m", C74:C96) -> 12658089.82 | D11: =COUNTIF(D74:D96,"M") -> 17 | E11: =SUMIF(D74:D96,"M",E74:E96) -> 28 | F11: =E11/E20 -> 0.2568807339 | G11: =C11/C5 -> 0.2045823872 | H11: =C11/A5 -> 0.04635199505
A12: Asian Pacific Female | C12: =SUMIF(D74:D96,"F", C74:C96) -> 4697695.88 | D12: =COUNTIF(D74:D96,"F") -> 4 | E12: =SUMIF(D74:D96,"F",E74:E96) -> 7 | F12: =E12/E20 -> 0.06422018349 | G12: =C12/C5 -> 0.07592502905 | H12: =C12/A5 -> 0.0172022461
A13: Subcontinent Asian Male | C13: =SUMIF(D64:D71,"m", C64:C71) -> 10845398.65 | D13: =COUNTIF(D64:D71,"M") -> 6 | E13: =SUMIF(D64:D71,"M",E64:E71) -> 12 | F13: =E13/E20 -> 0.1100917431 | G13: =C13/C5 -> 0.1752853375 | H13: =C13/A5 -> 0.03971419635
A14: Subcontinent Asian Female | C14: =SUMIF(D64:D71,"F", C64:C71) -> 585000 | D14: =COUNTIF(D64:D71,"F") -> 1 | E14: =SUMIF(D64:D71,"F",E64:E71) -> 1 | F14: =E14/E20 -> 0.009174311927 | G14: =C14/C5 -> 0.009454878121 | H14: =C14/A5 -> 0.00214218081
A15: Native American Male | C15: =SUMIF(D53:D54,"m", C53:C54) -> 0 | D15: =COUNTIF(D53:D54,"M") -> 0 | E15: =SUMIF(D53:D54,"M",E53:E54) -> 0 | F15: =E15/E20 -> 0 | G15: =C15/C5 -> 0 | H15: =C15/A5 -> 0
A16: Native American Female | C16: =SUMIF(D53:D54,"F", C53:C54) -> 180000.01 | D16: =COUNTIF(D53:D54,"F") -> 1 | E16: =SUMIF(D53:D54,"F",E53:E54) -> 2 | F16: =E16/E20 -> 0.01834862385 | G16: =C16/C5 -> 0.00290919343 | H16: =C16/A5 -> 0.0006591325936
A17: Non Minority Women | C17: =SUMIF(D103:D127,"F", C103:C127) -> 10874292.95 | D17: =COUNTIF(D103:D127,"F") -> 20 | E17: =SUMIF(D103:D127,"F",E103:E127) -> 27 | F17: =E17/E20 -> 0.247706422 | G17: =C17/C5 -> 0.1757523325 | H17: =C17/A5 -> 0.03982000287
A18: Non Minority Men | C18: =SUMIF(D99:D100,"M", C99:C100) -> 0 | D18: =COUNTIF(D99:D100,"M") -> 0 | E18: =SUMIF(D99:D100,"M",E99:E100) -> 0 | F18: =E18/E20 -> 0 | G18: =C18/C5 -> 0 | H18: =C18/A5 -> 0
A20: Total | C20: =SUM(C7:C18) -> 61872822.95 | D20: =SUM(D7:D19) -> 72 | E20: =SUM(E7:E19) -> 109
A21: Total Prime Contracts Awarded | C21: =SUM(C132:C137,F132:F137,I132:I136) -> 22
A22: Red Italic = DBE firm as Prime
A23: BOLD = women
A25: Hispanic American | C25: Dollars | D25: M/F | E25: Contract | F25: Contract Number | G25: Prime | H25: Prime Name | I25: Districts
A26: ACT CONSULTING ENGINEERS | C26: 1350000 | D26: M | E26: 1 | F26: =FETCHCOMMENT(E26) -> 08A3639 | G26: 1 | H26: =FETCHCOMMENT(G26) -> TranSystems Corporation | I26: 8
A27: BARGAS ENVIRONMENTAL | C27: 300003.76 | D27: F | E27: 1 | F27: =FETCHCOMMENT(E27) -> 03A3681 | G27: 1 | H27: =FETCHCOMMENT(G27) -> ICF Jones & Stokes, Inc. | I27: 3
A28: CABRINHA HEARN & ASSOCIATES | C28: 110000 | D28: M | E28: 1 | F28: =FETCHCOMMENT(E28) -> 07A5738 | G28: 1 | H28: =FETCHCOMMENT(G28) -> STANTEC CONSULTING SERVICES INC | I28: 7
A29: D'LEON CONSULTING | C29: 350000 | D29: M | E29: 1 | F29: =FETCHCOMMENT(E29) -> 07A5766 | G29: 1 | H29: =FETCHCOMMENT(G29) -> Michael Baker International, Inc. | I29: 7
A30: DEAN RYAN CONSULTANTS & DESIGNERS, INC. | C30: 1375500 | D30: F | E30: 1 | F30: =FETCHCOMMENT(E30) -> 07A5768 | G30: 1 | H30: =FETCHCOMMENT(G30) -> DEAN RYAN CONSULTANTS & DESIGNERS, INC. | I30: 7
A31: EARTHVIEW SCIENCE | C31: 75000.94 | D31: F | E31: 1 | F31: =FETCHCOMMENT(E31) -> 03A3681 | G31: 1 | H31: =FETCHCOMMENT(G31) -> ICF Jones & Stokes, Inc. | I31: 3
A32: FILIPPIN ENGINEERING INC | C32: 585000 | D32: M | E32: 1 | F32: =FETCHCOMMENT(E32) -> 07A5729 | G32: 1 | H32: =FETCHCOMMENT(G32) -> NV5 INC | I32: 7
A33: FOUNTAINHEAD CONSULTING CORP | C33: 3297267.1 | D33: M | E33: 2 | F33: =FETCHCOMMENT(E33) -> 11A3661 0612971 | G33: 2 | H33: =FETCHCOMMENT(G33) -> Kleinfelder Construction Services, Inc. MS ENGINEERS | I33: 6,11
A34: JM DIAZ, INC. | C34: 350000 | D34: M | E34: 1 | F34: =FETCHCOMMENT(E34) -> 07A5766 | G34: 1 | H34: =FETCHCOMMENT(G34) -> Michael Baker International, Inc. | I34: 7
A35: KINGFISHER BIO, INC. | C35: 75000.94 | D35: M | E35: 1 | F35: =FETCHCOMMENT(E35) -> 03A3681 | G35: 1 | H35: =FETCHCOMMENT(G35) -> ICF Jones & Stokes, Inc. | I35: 3
A36: LA SALLE SOLUTIONS | C36: 1800164.6 | D36: M | E36: 2 | F36: =FETCHCOMMENT(E36) -> 11A3661 08A3604 | G36: 2 | H36: =FETCHCOMMENT(G36) -> Kleinfelder Construction Services, Inc. Bureau Veritas North America, Inc. | I36: 8,11
A37: MA ENGINEERING | C37: 350000 | D37: M | E37: 1 | F37: =FETCHCOMMENT(E37) -> 07A5766 | G37: 1 | H37: =FETCHCOMMENT(G37) -> Michael Baker International, Inc. | I37: 7
A38: RIVER FOCUS | C38: 100000.01 | D38: M | E38: 1 | F38: =FETCHCOMMENT(E38) -> 04A6813 | G38: 1 | H38: =FETCHCOMMENT(G38) -> HDR Engineering, Inc. | I38: 4
A39: SAMA CONSTRUCTION | C39: 1667895.1 | D39: M | E39: 3 | F39: =FETCHCOMMENT(E39) -> 59A1258 08A3604 06A2975 | G39: 2 | H39: =FETCHCOMMENT(G39) -> Bureau Veritas North America, Inc. NV5 INC | I39: 6,8,59
A40: SIX RIVERS GEOSCIENCES | C40: 100000.01 | D40: F | E40: 1 | F40: =FETCHCOMMENT(E40) -> 04A6813 | G40: 1 | H40: =FETCHCOMMENT(G40) -> HDR Engineering, Inc. | I40: 4
A41: SYRUSA ENGINEERING INC | C41: 4112856.97 | D41: M | E41: 4 | F41: =FETCHCOMMENT(E41) -> 59A1258 09A0964 06A2975 07A5729 | G41: 2 | H41: =FETCHCOMMENT(G41) -> Bureau Veritas North America, Inc. NV5 INC | I41: 6,7,9,59
A42: TRIDENT CPM CONSULTING | C42: 100000 | D42: M | E42: 1 | F42: =FETCHCOMMENT(E42) -> 07A5677 | G42: 1 | H42: =FETCHCOMMENT(G42) -> ARCADIS INC | I42: 7
A43: UNICO ENGINEERING CONSULTING | C43: 2507179.95 | D43: M | E43: 2 | F43: =FETCHCOMMENT(E43) -> 09A0964 06A2975 | G43: 1 | H43: =FETCHCOMMENT(G43) -> NV5 INC | I43: 6,9
A44: VALLE & ASSOCIATES CIVIL | C44: 739296.3 | D44: M | E44: 1 | F44: =FETCHCOMMENT(E44) -> 06A2971 | G44: 1 | H44: =FETCHCOMMENT(G44) -> MS ENGINEERING INC | I44: 6
A45: VSCE INC | C45: 2239284.85 | D45: M | E45: 2 | F45: =FETCHCOMMENT(E45) -> 09A0964 06A2975 | G45: 1 | H45: =FETCHCOMMENT(G45) -> NV5 INC | I45: 6,9
F49: =FETCHCOMMENT(E49) ->  | H49: =FETCHCOMMENT(G49) -> 
F50: =FETCHCOMMENT(E50) ->  | H50: =FETCHCOMMENT(G50) -> 
A52: Native American | C52: Dollars | D52: M/F | E52: Contract | F52: Contract Number | G52: Prime | H52: Prime Name | I52: Districts
A53: GERONIMO ENGINEERING | C53: ='[1]DPAC A&E Worksheet'!W8 -> 180000.01 | D53: F | E53: 2 | F53: =FETCHCOMMENT(E53) -> 04A6813 04A6823 | G53: 2 | H53: =FETCHCOMMENT(G53) -> HDR Engineering, Inc. BROWN AND CALDWELL | I53: 4
F54: =FETCHCOMMENT(E54) ->  | H54: =FETCHCOMMENT(G54) -> 
A56: African American | C56: Dollars | D56: M/F | E56: Contract | F56: Contract Number | G56: Prime | H56: Prime Name | I56: Districts
A57: ACTIVEWAYZ ENGINEERING, INC | C57: ='[1]DPAC A&E Worksheet'!AI8 -> 100000.01 | D57: M | E57: 1 | F57: =FETCHCOMMENT(E57) -> 04A6813 | G57: 1 | H57: =FETCHCOMMENT(G57) -> HDR Engineering, Inc. | I57: 4
A58: ACUMEN BUILDING | C58: ='[1]DPAC A&E Worksheet'!AI17 -> 267895.1 | D58: M | E58: 1 | F58: =FETCHCOMMENT(E58) -> 06A2975 | G58: 1 | H58: =FETCHCOMMENT(G58) -> NV5 INC | I58: 6
A59: O2EPCM INC | C59: ='[1]DPAC A&E Worksheet'!AC8 -> 80000 | D59: F | E59: 1 | F59: =FETCHCOMMENT(E59) -> 07A5677 | G59: 1 | H59: =FETCHCOMMENT(G59) -> ARCADIS INC | I59: 7
F60: =FETCHCOMMENT(E60) ->  | H60: =FETCHCOMMENT(G60) -> 
F61: =FETCHCOMMENT(E61) ->  | H61: =FETCHCOMMENT(G61) -> 
A63: Sub Cont Asian | C63: Dollars | D63: M/F | E63: Contract | F63: Contract Number | G63: Prime | H63: Prime Name | I63: Districts
A64: AMC INC | C64: 4020000 | D64: M | E64: 3 | F64: =FETCHCOMMENT(E64) -> 59A1258 07A5677 08A3604 | G64: 2 | H64: =FETCHCOMMENT(G64) -> ARCADIS INC Bureau Veritas North America, Inc. | I64: 7,8,59
A65: EARTH MECHANICS | C65: 275000 | D65: M | E65: 2 | F65: =FETCHCOMMENT(E65) -> 08A3639 07A5782 | G65: 1 | H65: =FETCHCOMMENT(G65) -> TranSystems Corporation | I65: 7,8
A66: FULCRUM CONSULTANTS INC | C66: 739296.3 | D66: M | E66: 1 | F66: =FETCHCOMMENT(E66) -> 06A2971 | G66: 1 | H66: =FETCHCOMMENT(G66) -> MS ENGINEERS INC | I66: 6
A67: GRIT FORCE INC | C67: 1428233.3 | D67: M | E67: 1 | F67: =FETCHCOMMENT(E67) -> 06A2969 | G67: 1 | H67: =FETCHCOMMENT(G67) -> ATLAS TECHNICAL CONSULTANTS INC | I67: 6
A68: REDDY ENGINEERING | C68: 1070164.6 | D68: M | E68: 2 | F68: =FETCHCOMMENT(E68) -> 11A3661 11A3767 | G68: 2 | H68: =FETCHCOMMENT(G68) -> Kleinfelder Construction Services, Inc. Kimley-Horn and Associates, Inc. | I68: 11
A69: S2 ENGINEERING | C69: 3312704.45 | D69: M | E69: 3 | F69: =FETCHCOMMENT(E69) -> 09A0964 06A2975 07A5729 | G69: 1 | H69: =FETCHCOMMENT(G69) -> NV5 INC | I69: 6,7,9
A70: SKYLINE CONSULTANTS | C70: 585000 | D70: F | E70: 1 | F70: =FETCHCOMMENT(E70) -> 07A5729 | G70: 1 | H70: =FETCHCOMMENT(G70) -> NV5 INC | I70: 7
F71: =FETCHCOMMENT(E71) ->  | H71: =FETCHCOMMENT(G71) -> 
A73: Asian Pacific | C73: Dollars | D73: M/F | E73: Contract | F73: Contract Number | G73: Prime | H73: Prime Name | I73: Districts
A74: ADVANTEC CONSULTING ENGINEERS | C74: 2011314.2 | D74: M | E74: 3 | F74: =FETCHCOMMENT(E74) -> 08A3639 09A0976 07A5782 | G74: 2 | H74: =FETCHCOMMENT(G74) -> TranSystems Corporation Parsons | I74: 7,8,9
A75: AEW ENGINEERING INC | C75: 160000 | D75: M | E75: 1 | F75: =FETCHCOMMENT(E75) -> 04A6823 | G75: 1 | H75: =FETCHCOMMENT(G75) -> BROWN & CALDWELL | I75: 4
A76: ALIQUOT ASSOCIATES | C76: 500000.05 | D76: M | E76: 1 | F76: =FETCHCOMMENT(E76) -> 04A6813 | G76: 1 | H76: =FETCHCOMMENT(G76) -> HDR Engineering, Inc. | I76: 4
A77: AMC CONSULTING ENGINEERS | C77: 267895.1 | D77: M | E77: 1 | F77: =FETCHCOMMENT(E77) -> 06A2975 | G77: 1 | H77: =FETCHCOMMENT(G77) -> NV5 INC | I77: 6
A78: AXIOM ENGINEERING | C78: 574116.65 | D78: M | E78: 1 | F78: =FETCHCOMMENT(E78) -> 06A2969 | G78: 1 | H78: =FETCHCOMMENT(G78) -> ATLAS TECHNICAL CONSULTANTS INC | I78: 6
A79: C2PM | C79: 425102.98 | D79: F | E79: 1 | F79: =FETCHCOMMENT(E79) -> 11A3661 | G79: 1 | H79: =FETCHCOMMENT(G79) -> Kleinfelder Construction Services, Inc. | I79: 11
A80: EGP CONSULTING, INC. | C80: 140000 | D80: F | E80: 1 | F80: =FETCHCOMMENT(E80) -> 07A5782 | G80: 1 | H80: =FETCHCOMMENT(G80) -> TranSystems Corporation | I80: 7
A81: ELITE TRANSPORTATION GROUP INC | C81: 312000 | D81: M | E81: 1 | F81: =FETCHCOMMENT(E81) -> 11A3767 | G81: 1 | H81: =FETCHCOMMENT(G81) -> KIMLEY-HORN AND ASSOCIATES | I81: 11
A82: FPL AND ASSOCIATES, INC. | C82: 350000 | D82: M | E82: 1 | F82: =FETCHCOMMENT(E82) -> 07A5766 | G82: 1 | H82: =FETCHCOMMENT(G82) -> Michael Baker International, Inc. | I82: 7
A83: INNOVEX ENVIRONMENTAL | C83: 320000 | D83: M | E83: 1 | F83: =FETCHCOMMENT(E83) -> 04A6823 | G83: 1 | H83: =FETCHCOMMENT(G83) -> BROWN & CALDWELL | I83: 4
A84: KCM ENGINEERING INC | C84: 739296.3 | D84: M | E84: 1 | F84: =FETCHCOMMENT(E84) -> 06A2971 | G84: 1 | H84: =FETCHCOMMENT(G84) -> MS ENGINEERS INC | I84: 6
A85: LIN CONSULTING | C85: 1212000 | D85: M | E85: 4 | F85: =FETCHCOMMENT(E85) -> 08A3639 11A3767 07A5766 07A5782 | G85: 3 | H85: =FETCHCOMMENT(G85) -> TranSystems Corporation Kimley-Horn and Associates, Inc. Michael Baker International, Inc. | I85: 7,8,11
A86: MOZAMO ENGINEERING INC | C86: 3820592.9 | D86: F | E86: 4 | F86: =FETCHCOMMENT(E86) -> 06A2969 09A0964 06A2971 06A2975 | G86: 3 | H86: =FETCHCOMMENT(G86) -> ATLAS TECHNICAL CONSULTANTS INC NV5 INC MS ENGINEERING INC | I86: 6,9
A87: PARK ENGINEERING INC | C87: 739296.3 | D87: M | E87: 1 | F87: =FETCHCOMMENT(E87) -> 06A2971 | G87: 1 | H87: =FETCHCOMMENT(G87) -> MS ENGINEERS INC | I87: 6
A88: RAIL SURVEYORS AND ENGINEERS, INC. | C88: 500000.05 | D88: M | E88: 1 | F88: =FETCHCOMMENT(E88) -> 04A6813 | G88: 1 | H88: =FETCHCOMMENT(G88) -> HDR Engineering, Inc. | I88: 4
A89: SAN DIEGUITO ENGINEERING INC | C89: 312000 | D89: F | E89: 1 | F89: =FETCHCOMMENT(E89) -> 11A3767 | G89: 1 | H89: =FETCHCOMMENT(G89) -> KIMLEY-HORN AND ASSOCIATES | I89: 11
A90: SILICON TRANSPORTATION | C90: 78000 | D90: M | E90: 1 | F90: =FETCHCOMMENT(E90) -> 11A3767 | G90: 1 | H90: =FETCHCOMMENT(G90) -> KIMLEY-HORN AND ASSOCIATES | I90: 11
A91: SYSTEM METRICS GROUP | C91: 1051314.2 | D91: M | E91: 1 | F91: =FETCHCOMMENT(E91) -> 09A0976 | G91: 1 | H91: =FETCHCOMMENT(G91) -> PARSONS | I91: 9
A92: TATSUMI AND PARTNERS | C92: 890000 | D92: M | E92: 2 | F92: =FETCHCOMMENT(E92) -> 08A3639 07A5782 | G92: 1 | H92: =FETCHCOMMENT(G92) -> TranSystems Corporation | I92: 7,8
A93: TRANSMAT | C93: 2872856.97 | D93: M | E93: 6 | F93: =FETCHCOMMENT(E93) -> 08A3615 09A0964 06A2975 09A0976 06A2975 07A5729 | G93: 3 | H93: =FETCHCOMMENT(G93) -> ATLAS TECHNICAL CONSULTANTS INC NV5 INC PARSONS | I93: 6,7,8,9
A94: TRICERTUS LLC | C94: 80000 | D94: M | E94: 1 | F94: =FETCHCOMMENT(E94) -> 07A5677 | G94: 1 | H94: =FETCHCOMMENT(G94) -> ARCADIS INC | I94: 7
F95: =FETCHCOMMENT(E95) ->  | H95: =FETCHCOMMENT(G95) -> 
F96: =FETCHCOMMENT(E96) ->  | H96: =FETCHCOMMENT(G96) -> 
A98: Other | C98: Dollars | D98: M/F | E98: Contract | F98: Contract Number | G98: Prime | H98: Prime Name | I98: Districts
F99: =FETCHCOMMENT(E99) ->  | H99: =FETCHCOMMENT(G99) -> 
F100: =FETCHCOMMENT(E100) ->  | H100: =FETCHCOMMENT(G100) -> 
A102: Non Minority Women | C102: Dollars | D102: M/F | E102: Contract | F102: Contract Number | G102: Prime | H102: Prime Name | I102: Districts
A103: ALBAT | C103: 1764578.48 | D103: F | E103: 2 | F103: =FETCHCOMMENT(E103) -> 11A3661 06A2975 | G103: 2 | H103: =FETCHCOMMENT(G103) -> Kleinfelder Construction Services, Inc. NV5 INC | I103: 6,11
A104: AREA WEST ENVIRONMENTAL | C104: 450005.64 | D104: F | E104: 1 | F104: =FETCHCOMMENT(E104) -> 03A3681 | G104: 1 | H104: =FETCHCOMMENT(G104) -> ICF Jones & Stokes, Inc. | I104: 3
A105: BENNETT ENGINEERING SERVICES, INC. | C105: 556000.04 | D105: F | E105: 2 | F105: =FETCHCOMMENT(E105) -> 04A6813 11A3767 | G105: 2 | H105: =FETCHCOMMENT(G105) -> HDR Engineering, Inc. Kimley-Horn and Associates, Inc. | I105: 4,11
A106: BLUE LAKE CIVIL | C106: 546000 | D106: F | E106: 1 | F106: =FETCHCOMMENT(E106) -> 11A3767 | G106: 1 | H106: =FETCHCOMMENT(G106) -> KIMLEY-HORN AND ASSOCIATES | I106: 11
A107: COGSTONE RESOURCE | C107: 75000.94 | D107: F | E107: 1 | F107: =FETCHCOMMENT(E107) -> 03A3681 | G107: 1 | H107: =FETCHCOMMENT(G107) -> ICF Jones & Stokes, Inc. | I107: 3
A108: CPM PARTNERS | C108: 425102.98 | D108: F | E108: 1 | F108: =FETCHCOMMENT(E108) -> 11A3661 | G108: 1 | H108: =FETCHCOMMENT(G108) -> Kleinfelder Construction Services, Inc. | I108: 11
A109: EKOLOJIK | C109: 85020.58 | D109: F | E109: 1 | F109: =FETCHCOMMENT(E109) -> 11A3661 | G109: 1 | H109: =FETCHCOMMENT(G109) -> Kleinfelder Construction Services, Inc. | I109: 11
A110: GALVIN PRESERVATION ASSOCIATES | C110: 150001.88 | D110: F | E110: 1 | F110: =FETCHCOMMENT(E110) -> 03A3681 | G110: 1 | H110: =FETCHCOMMENT(G110) -> ICF Jones & Stokes, Inc. | I110: 3
A111: GATEWAY PACIFIC | C111: 886082.3 | D111: F | E111: 2 | F111: =FETCHCOMMENT(E111) -> 11A3767 11A3661 | G111: 2 | H111: =FETCHCOMMENT(G111) -> KIMLEY-HORN AND ASSOCIATES Kleinfelder Construction Services, Inc. | I111: 11
A112: JSE4 | C112: 493000 | D112: F | E112: 3 | F112: =FETCHCOMMENT(E112) -> 11A3767 08A3639 07A5782 | G112: 2 | H112: =FETCHCOMMENT(G112) -> KIMLEY-HORN AND ASSOCIATES TranSystems Corporation | I112: 3,8,11
A113: LEWIS JONES | C113: 624000 | D113: F | E113: 1 | F113: =FETCHCOMMENT(E113) -> 11A3767 | G113: 1 | H113: =FETCHCOMMENT(G113) -> KIMLEY-HORN AND ASSOCIATES | I113: 11
A114: KELLY MCNUTT CONSULTING, LLC | C114: 1100000 | D114: F | E114: 1 | F114: =FETCHCOMMENT(E114) -> 04A6685 | G114: 1 | H114: =FETCHCOMMENT(G114) -> Stanton Constructability Services ,LLC | I114: 4
A115: MEGAN STROMBERG CONSTULTING | C115: 80000 | D115: F | E115: 1 | F115: =FETCHCOMMENT(E115) -> 04A6823 | G115: 1 | H115: =FETCHCOMMENT(G115) -> BROWN & CALDWELL | I115: 4
A116: MOUNTAINVIEW BIOLOGICAL | C116: 594150 | D116: F | E116: 1 | F116: =FETCHCOMMENT(E116) -> 08A3623 | G116: 1 | H116: =FETCHCOMMENT(G116) -> DUDEK | I116: 8
A117: PRR INC | C117: 228001.88 | D117: F | E117: 2 | F117: =FETCHCOMMENT(E117) -> 11A3767 03A3681 | G117: 2 | H117: =FETCHCOMMENT(G117) -> KIMLEY-HORN AND ASSOCIATES ICF Jones & Stokes, Inc. | I117: 3,11
A118: SAYLOR CONSULTING GROUP | C118: 1120000 | D118: F | E118: 1 | F118: =FETCHCOMMENT(E118) -> 04A6823 | G118: 1 | H118: =FETCHCOMMENT(G118) -> BROWN & CALDWELL | I118: 4
A119: SWAIM BIOLOGICAL CONSULTING | C119: 198050 | D119: F | E119: 1 | F119: =FETCHCOMMENT(E119) -> 08A3623 | G119: 1 | H119: =FETCHCOMMENT(G119) -> DUDEK | I119: 8
A120: WAGNER ENGINEERING & SURVEY | C120: 110000 | D120: F | E120: 1 | F120: =FETCHCOMMENT(E120) -> 07A5738 | G120: 1 | H120: =FETCHCOMMENT(G120) -> STANTEC CONSULTING SERVICES INC | I120: 7
A121: WATEARTH | C121: 650001.93 | D121: F | E121: 2 | F121: =FETCHCOMMENT(E121) -> 04A6813 03A3681 | G121: 2 | H121: =FETCHCOMMENT(G121) -> HDR Engineering, Inc. ICF Jones & Stokes, Inc. | I121: 3,4
A122: Z & K CONSULTANTS INC | C122: 739296.3 | D122: F | E122: 1 | F122: =FETCHCOMMENT(E122) -> 06A2971 | G122: 1 | H122: =FETCHCOMMENT(G122) -> MS ENGINEERS INC | I122: 6
F125: =FETCHCOMMENT(E125) -> 
F126: =FETCHCOMMENT(E126) -> 
F127: =FETCHCOMMENT(E127) -> 
G130: =FETCHCOMMENT(F130) ->  | J130: =FETCHCOMMENT(I130) -> 
A131: Prime Name | C131: # of Contracts | D131: Contract # | E131: Prime Name | F131: # of Contracts | G131: Contract # | H131: Prime Name | I131: # of Contracts | J131: Contract #
A132: ATLAS TECHNICAL CONSULTANTS INC | C132: 2 | D132: =FETCHCOMMENT(C132) -> 06A2969 08A3615 | E132: HDR ENGINEERING, INC. | F132: 1 | G132: =FETCHCOMMENT(F132) -> 04A6813 | H132: NV5 INC | I132: 3 | J132: =FETCHCOMMENT(I132) -> 09A0964 06A2975 07A5729
A133: ARCADIS USA INC | C133: 1 | D133: =FETCHCOMMENT(C133) -> 07A5677 | E133: ICF JONES & STOKES, INC. | F133: 1 | G133: =FETCHCOMMENT(F133) -> 03A3681 | H133: PARSONS | I133: 1 | J133: =FETCHCOMMENT(I133) -> 09A0976
A134: BROWN AND CALDWELL | C134: 1 | D134: =FETCHCOMMENT(C134) -> 04A6823 | E134: KIMLEY-HORN AND ASSOCIATES INC | F134: 1 | G134: =FETCHCOMMENT(F134) -> 11A3767 | H134: STANTEC CONSULTING SERVICES INC | I134: 1
A135: BUREAU VERITAS NORTH AMERICA INC | C135: 2 | D135: =FETCHCOMMENT(C135) -> 59A1258 08A3604 | E135: KLEINFELDER CONSTRUCTION SERVICES INC | F135: 1 | G135: =FETCHCOMMENT(F135) -> 11A3661 | H135: STANTON CONSTRUCTABILITY SERVICES ,LLC | I135: 1
A136: DEAN RYAN CONSULTANTS & DESIGNERS, INC. | C136: 1 | D136: =FETCHCOMMENT(C136) -> 07A5768 | E136: MICHAEL BAKER INTERNATIONAL, INC. | F136: 1 | G136: =FETCHCOMMENT(F136) -> 09A0976 07A5766 | H136: TRANSYSTEMS CORPORATION | I136: 2
A137: DUDEK | C137: 1 | D137: =FETCHCOMMENT(C137) -> 08A3623 | E137: MS ENGINEERING INC | F137: 1 | G137: =FETCHCOMMENT(F137) -> 06A2971
A139: To see names of prime contractors/contract numbers, place your cursor on comment tab (red triangle).
A140: Caltrans DBE Reports: http://www.dot.ca.gov/hq/bep/reports.htm
